Cogmind - Beta 12 @@@ ROGUE MODE // 2023.10.29 @ 20:23:48 Player: Shin Result: Destroyed by as-64624 with Assembled F-torch Performance ------------- Evolutions (0) 0 Regions Visited (2) 400 Robots Destroyed (22) 110 Value Destroyed (288) 288 Prototype IDs (4) 80 Alien Tech Used (0) 0 Bonus (0) 0 TOTAL SCORE: 878 Bonus ------- None Cogmind --------- Core Integrity 0/250 Matter 300/300 Energy 140/140 System Corruption 0% Temperature Cool (20) Movement Rolling (110) Ox2 Location -10/Mines Parts ------- > --- POWER (1) -------- Light Deuterium Engine > --- PROPULSION (2) --- Wheel > --- UTILITY (2) ------ Large Storage Unit Improved Terrain Scanner > --- WEAPON (2) ------- (None) > --- INVENTORY (15) --- Nuclear Core Light Treads Light Treads High-capacity Matter Pod (100) Sensor Array Improved Signal Interpreter Seismic Detector Advanced Targeting Computer ECM Suite Light Armor Plating Hacking Suite Light Assault Rifle Grenade Launcher Hammer Peak State ------------ > --- POWER ------------ Light Deuterium Engine > --- PROPULSION ------- Aluminum Leg Carbon-fiber Leg > --- UTILITY ---------- Large Storage Unit Improved Terrain Scanner > --- WEAPON ----------- Light Assault Rifle Assault Cannon > --- INVENTORY -------- Light Treads Light Treads Wheel High-capacity Matter Pod Sensor Array Improved Signal Interpreter Seismic Detector Advanced Targeting Computer ECM Suite Light Armor Plating Hacking Suite Light Assault Rifle Grenade Launcher Grenade Launcher Hammer [Rating: 17] Favorites ----------- Power Ion Engine Engine Ion Engine Propulsion Aluminum Leg Leg Aluminum Leg Wheel Wheel Utility Improved Terrain Scanner Device Improved Terrain Scanner Storage Large Storage Unit Weapon Light Assault Rifle Energy Gun Small Laser Ballistic Gun Light Assault Rifle Ballistic Cannon Assault Cannon Launcher Grenade Launcher Build | -11 -10 -10 ------- Run | Jun Mat Min Slots Evolved . | . . . Power . | . . . Propulsion . | . . . Utility . | . . . Weapon . | . . . Parts Attached 16 | 2 9 5 Power 2 | . 1 1 Engine 2 | . 1 1 Core . | . . . Reactor . | . . . Propulsion 4 | . 2 2 Treads . | . . . Leg 3 | . 2 1 Wheel 1 | . . 1 Hover . | . . . Flight . | . . . Utility 2 | 1 1 . Device 1 | 1 . . Storage 1 | . 1 . Processor . | . . . Hackware . | . . . Protection . | . . . Artifact . | . . . Weapon 8 | 1 5 2 Energy Gun 3 | . 2 1 Energy Cannon . | . . . Ballistic Gun 3 | 1 2 . Ballistic Cannon 1 | . . 1 Launcher 1 | . 1 . Special Weapon . | . . . Impact Weapon . | . . . Slashing Weapon . | . . . Piercing Weapon . | . . . Special Melee Weapon . | . . . Unidentified Prototypes . | . . . Parts Lost 3 | . . 3 Power . | . . . Propulsion 1 | . . 1 Utility . | . . . Weapon 2 | . . 2 Highest Loss Streak 3 | . . 3 To Critical Strikes . | . . . Average Slot Usage (%) 99 | . 100 99 Engine 14 | . 14 14 Leg 27 | . 28 27 Device 14 | . 14 14 Storage 14 | . 14 14 Energy Gun 11 | . 14 3 Ballistic Gun 14 | . 14 14 Ballistic Cannon 2 | . . 10 Naked Turns . | . . . Heaviest Build 32 | 13 28 32 Greatest Support 25 | 20 20 25 Greatest Overweight (x) 3 | . 1 3 Average Overweight (x) . | . . 1 Largest Inventory Capacity 15 | 8 15 15 Average Capacity 11 | 8 10 15 Most Carried 15 | 7 15 15 Average Carried 10 | 6 9 14 Final Capacity 15 | 8 15 15 Final Carried 15 | 7 15 14 Class Distribution -------------------- 54% | Scavenger-Mutant 45% | Mutant Dominant Class ---------------- Scavenger-Mutant | -10/Materials Mutant | -10/Mines Resources | -11 -10 -10 ----------- Run | Jun Mat Min Matter Collected 503 | 229 115 159 Remotely . | . . . Salvage Created 458 | 153 261 44 Parts 52 | 12 34 6 Haulers Intercepted . | . . . Recyclers Shooed 1 | 1 . . Parts Field Recycled . | . . . Retrieved Matter . | . . . Parts Self-Destructed . | . . . Prevented . | . . . Kills | -11 -10 -10 ------- Run | Jun Mat Min Combat Hostiles Destroyed 14 | . 11 3 Guns 11 | . 8 3 AOE 3 | . 3 . Classes Destroyed 7 | 2 5 . Worker 1 | . 1 . Tunneler 3 | 3 . . Recycler 1 | 1 . . Operator 1 | . 1 . Watcher 2 | . 2 . Swarmer 11 | . 8 3 Grunt 3 | . 3 . Best Kill Streak 4 | 2 4 3 Combat Bots Only 3 | . 3 3 Max Kills in Single Turn 4 | 1 4 1 Gunslinging . | . . . Exploded 3 | . 3 . Melee . | . . . Uniques/NPCs Destroyed . | . . . Combat | -11 -10 -10 -------- Run | Jun Mat Min Damage Taken 972 | . 212 760 Core 259 | . 44 215 Absorbed by Shields . | . . . Core Remaining (%) 100 | 100 . . Volleys Fired 49 | 9 32 8 Largest 2 | 2 2 2 Hottest 60 | 60 60 60 Shots Fired 97 | 18 63 16 Gun 96 | 18 62 16 Cannon . | . . . Launcher 1 | . 1 . Special . | . . . Kinetic 48 | 9 31 8 Thermal 48 | 9 31 8 Explosive 1 | . 1 . Electromagnetic . | . . . Robot Hit Streak 6 | 5 6 2 Robot Miss Streak 7 | 2 7 3 Penetration Max . | . . . Secondary Targets 1 | . . 1 Max Gunslinging Chain 1 | . . 1 Shots Hit Robots 49 | 11 30 8 Core Hits 33 | 7 22 4 Critical Kills . | . . . Critical Parts Destroyed . | . . . Critical Strikes . | . . . Melee Attacks . | . . . Impact . | . . . Slashing . | . . . Piercing . | . . . Sneak Attacks . | . . . Combat Hostiles . | . . . Follow-up Attacks . | . . . Damage Inflicted 618 | 111 433 74 Guns 488 | 111 303 74 Cannons . | . . . Explosions 130 | . 130 . Melee . | . . . Ramming . | . . . Kinetic 231 | 54 134 43 Thermal 257 | 57 169 31 Explosive 130 | . 130 . Electromagnetic . | . . . Impact . | . . . Slashing . | . . . Piercing . | . . . Highest Corruption . | . . . Average Corruption . | . . . Corruption Purged . | . . . Corruption Blocked . | . . . Overload Shots . | . . . Overflow Damage . | . . . Projectiles . | . . . Explosions . | . . . Melee . | . . . Knockbacks . | . . . Impact . | . . . Kinetic . | . . . Secondary . | . . . Self-Inflicted Damage . | . . . Shots . | . . . Rammed . | . . . Targets Rammed . | . . . Kicked . | . . . Crushed . | . . . Highest Temperature 54 | 40 54 42 Average Temperature 20 | 17 21 22 Received Heat Transfer 136 | . 36 100 Siege Activations . | . . . Robots Corrupted . | . . . Combat Hostiles . | . . . Parts Fried . | . . . Impact Corruptions . | . . . Robots Melted . | . . . Combat Hostiles . | . . . Parts Melted 1 | . 1 . Heat Transferred 575 | 125 375 75 Parts Sabotaged . | . . . Parts Stolen . | . . . Parts Stripped . | . . . Power Chain Reactions . | . . . Missiles Intercepted . | . . . Alert | -11 -10 -10 ------- Run | Jun Mat Min Peak Influence 432 | 20 432 82 Initial 13 | . 13 12 Average 133 | 13 163 64 Maximum Alert Level 2 | . 2 . Low Security (%) 71 | 100 59 100 Level 1 26 | . 37 . Level 2 1 | . 2 . Level 3 . | . . . Level 4 . | . . . Level 5 . | . . . High Security . | . . . Max Security . | . . . Squads Dispatched 3 | . 2 1 Investigation 1 | . . 1 Extermination . | . . . Reinforcement 2 | . 2 . Assault . | . . . Garrison . | . . . Intercept . | . . . Searches Triggered . | . . . Construction Impeded . | . . . Haulers Reinforced . | . . . Active Scanning Responses . | . . . Cargo Convoy Interrupts . | . . . Stealth | -11 -10 -10 --------- Run | Jun Mat Min Distress Signals 2 | . 2 . Communications Jammed . | . . . Distress Signals . | . . . Times Spotted 40 | . 23 17 Peak Tracking Total 13 | . 5 13 Tactical Retreats 2 | . 1 1 Traps | -11 -10 -10 ------- Run | Jun Mat Min Traps Triggered . | . . . Indirectly . | . . . Trap Hack Attempts . | . . . Triggered . | . . . Disarmed . | . . . Reprogrammed . | . . . Reused . | . . . Traps Extracted . | . . . Installed . | . . . Triggered . | . . . Machines | -11 -10 -10 ---------- Run | Jun Mat Min Machines Disabled . | . . . Max in Single Turn . | . . . Machines Repaired . | . . . Machines Sabotaged . | . . . Overloaded Fab Kills . | . . . Hacking | -11 -10 -10 --------- Run | Jun Mat Min Machines Accessed 8 | . 7 1 Terminals 6 | . 6 . Fabricators . | . . . Repair Stations . | . . . Recycling Units 1 | . 1 . Scanalyzers . | . . . Garrison Access . | . . . Total Hacks 25 | . 24 1 Successful 13 | . 12 1 Failed 12 | . 12 . Catastrophic . | . . . Database Lockouts . | . . . Manual 6 | . 6 . Terminals 20 | . 20 . Fabricators . | . . . Repair Stations . | . . . Recycling Units 4 | . 4 . Scanalyzers . | . . . Garrison Access . | . . . Terminal Hacks 10 | . 9 1 Prototype ID Bank 2 | . 2 . Open Door 1 | . . 1 Emergency Access Points 1 | . 1 . Alert Level 1 | . 1 . Locate Traps 2 | . 2 . Maintenance Status 1 | . 1 . Hauler Manifests 2 | . 2 . Fabricator Hacks . | . . . Repair Station Hacks . | . . . Recycling Unit Hacks . | . . . Scanalyzer . | . . . Garrison Access Hacks . | . . . Unauthorized Hacks 3 | . 3 . Terminals 1 | . 1 . Botnet 1 | . 1 . Fabricators . | . . . Repair Stations . | . . . Recycling Units 2 | . 2 . Reject 1 | . 1 . Mask 1 | . 1 . Scanalyzers . | . . . Garrison Access . | . . . Data Cores Recovered 1 | . 1 . Used 1 | . 1 . Hacking Detections 7 | . 7 . Full Trace Events 1 | . 1 . Feedback Events . | . . . Feedback Blocked . | . . . Robot Schematics Acquired . | . . . Robots Built . | . . . Authchips . | . . . Time . | . . . Total Robot Build Rating . | . . . Part Schematics Acquired . | . . . Parts Built . | . . . Authchips . | . . . Time . | . . . Total Part Build Rating . | . . . Parts Repaired . | . . . Time . | . . . Parts Recycled . | . . . Recycled Matter . | . . . Retrieved Matter . | . . . Retrieved Components . | . . . Parts Scanalyzed . | . . . Part Schematics Acquired . | . . . Parts Damaged . | . . . Bothacking | -11 -10 -10 ------------ Run | Jun Mat Min Used RIF Installer . | . . . Robots Hacked . | . . . Non-combat . | . . . Combat . | . . . Robot Hacks Applied . | . . . Relay Couplers Released . | . . . Fabnet Peak Effective % . | . . . Robots Rewired . | . . . Allies Hacked . | . . . Hacks Repelled . | . . . Allies | -11 -10 -10 -------- Run | Jun Mat Min Total Allies . | . . . Largest Group . | . . . Highest-Rated Group . | . . . Highest-Rated Ally . | . . . Total Orders . | . . . Ally Attacks . | . . . Total Damage . | . . . Kills . | . . . Allies Corrupted . | . . . Allies Melted . | . . . Intel | -11 -10 -10 ------- Run | Jun Mat Min Robot Analysis Total . | . . . Derelict Logs Recovered 2 | . . 2 Drone Launches . | . . . Drone Recoveries . | . . . Exploration | -11 -10 -10 ------------- Run | Jun Mat Min Turns Passed 1918 | 93 1380 445 Spaces Moved 1145 | 50 883 212 Core . | . . . Treads . | . . . Legs 1142 | 50 883 209 Wheels 3 | . . 3 Hover . | . . . Flight . | . . . Fastest Speed 110 | 120 120 110 Average Speed 149 | 120 141 190 Slowest Speed 260 | 120 190 260 Overloaded Moves . | . . . Propulsion Burnouts . | . . . Robots Hopped . | . . . Cave-ins Triggered . | . . . Exploration Rate (%) 45 | 4 91 42 Regions Visited 2 Branch Regions 1 Pre-discovered Areas 1 | . . 1 Known Exits Taken . | . . . Unknown Exits Taken 2 | 1 1 . Scrap Searched 1 | . . 1 Spaces Dug . | . . . Terrain Destroyed 6 | . 6 . Melee . | . . . Projectile . | . . . AOE 6 | . 6 . Terrain Rammed . | . . . Walls Destroyed . | . . . Machines Disabled . | . . . Actions | -11 -10 -10 --------- Run | Jun Mat Min Total 1267 | 66 960 241 Wait 28 | 4 18 6 Move 1143 | 49 882 212 Hop . | . . . Pick Up 16 | 2 11 3 Fast Attach 1 | . . 1 Attach 2 | 1 . 1 Detach . | . . . Swap 13 | 1 9 3 Drop 15 | . 8 7 Fire 49 | 9 32 8 Melee . | . . . Ram . | . . . Kick . | . . . Crush . | . . . Escape Stasis . | . . . Rewire . | . . . Trap . | . . . Miscellaneous . | . . . Route ------- -11/Junkyard -10/Materials (discovered 5 exits: [*Mat x3] / *Min x2) -10/Mines (discovered 2 exits: [*Mat x2]) History --------- Turn | Location | Event 1 | -11/Junkyard | Discovered new exit (range 3) 94 | -11/Junkyard | Entered Materials 283 | -10/Materials | Discovered new exit (range 11) 308 | -10/Materials | Build established: Mutant 433 | -10/Materials | Discovered new exit (range 8) 622 | -10/Materials | Discovered new exit (range 16) 677 | -10/Materials | Discovered new exit (range 7) 845 | -10/Materials | Build established: Scavenger-Mutant 922 | -10/Materials | Discovered new exit (range 16) 1474 | -10/Materials | Entered Mines 1502 | -10/Mines | Discovered new exit (range 16) 1564 | -10/Mines | Met a Derelict shopkeep closing up shop 1639 | -10/Mines | Discovered new exit (range 15) 1706 | -10/Mines | Learned Materials terminal intel 1876 | -10/Mines | Assembled infested the area 1881 | -10/Mines | Assisted by a Guerilla fighting off Assembled 1886 | -10/Mines | Build established: Mutant 1905 | -10/Mines | Core integrity fell below 50% 1914 | -10/Mines | Core integrity fell below 20% 1919 | -10/Mines | Destroyed by as-64624 with Assembled F-torch Last Messages --------------- 01897_ as-19795 destroyed. 01897_ K-01 Serf collects debris. 01898_ Core Extractor disabled. 01900_ as-83756 destroyed. 01900_ as-10356 destroyed. 01900_ as-84876 destroyed. 01900_ as-39400 destroyed. 01901_ The unstable cave ceiling collapses. 01901_ Aluminum Leg destroyed. 01904_ as-27886 destroyed. 01905_ K-01 Serf collects debris. 01906_ as-80258 destroyed. 01907_ The unstable cave ceiling collapses. 01907_ Critical hit (Burn: +80). 01914_ U-05 Engineer lays Concrete. 01915_ Dropped Carbon-fiber Leg. 01916_ U-05 Engineer builds a Wall. 01917_ The unstable cave ceiling collapses. 01917_ Assault Cannon destroyed. 01919_ Lgt. Assault Rifle destroyed. Map ----- +----------------------------------------------------+ | | | ????#?????#??????????????????????????????????????? | | ??????????#????????????????#??????#??????????????? | | ??????????????????????????#######????????????????? | | ?????????#?????#???#?#???## ##????????#??????? | | ????????????????##???????# ##??????????????? | | ????????????????#?????#??# #?????????#????? | | ??????#???????????????#??## #??????????????? | | ??????# ????????#####????##### ##?????????????? | | ?????#? ????#### ####?????## #?????????????? | | ???????# ????# ##???#?# #?????????????? | | ???????# ???## #????## ##???#?????????? | | ???????# ??# #???## ##??????#???????? | | # ## ### * ###### ##???????????????? | | ???# %| =* # ## #????????????????? | | ???# ! # # ##???#???????????? | | ???######### ###?????????????? | | ?????????????? ##??????????????? | | ?#????????????## d #??????##???????? | | ??????????##???### ##???????????????? | | ?????????#????#??## ###???????#????????? | | ????????????#?#??##u a #?????#????????????? | | ???#?????????????## = ##?????#????????????? | | ??????#??????????# k #???#??????????????? | | ?????????????????# ##?????????????????? | | ????????????##???## ## @ #####??????????????? | | ???????????#??????# ## [ #???????????????? | | ??????????????#???#% ### ! #???????????????? | | ???????????#??????# ## ### #?????????????? | | ??????????????????# ##??## #?????????????? | | ??????????????????# ### ###???? #?????????????? | | ????????????####### #?#####???????#?????????????? | | ????? #??????#????????????????????? | | ????????????####### #???#?? ###?? ??????????????? | | ????????????????## ##?????? ##?????????????????? | | ????????????????# #????? ##????????????????? | | ????????????????# #?#?? #?#?##???????????? | | ????????????????# ##?# #???#????????????? | | ????????#???#???# ## #??#?#???????????? | | ????????????????# #???????????????? | | ????????????????# """ #???????????????? | | ?????????????#??## """ ##???????????????? | | ?????#???????????# """ ##????????????????? | | ??????????????#??# ## ####?????????????????? | | ????????#?????#?## #?## ##?????? ?????????????? | | ???#???#?#???????# #???# #?????????????????????? | | ??????????????#??# ##??? ##?????????????????????? | | ???????#??#??????# ##???#?#????????????????????? | | ??#?#?#??##?????## < ##?????????????????????????? | | ????????###????## #?????????????????????????? | +----------------------------------------------------+ Best States ------------- Heat Dissipation 25 Energy Generation 14 Energy Capacity 250 Matter Stores 300 Matter Capacity 300 Sight Range 16 Terrain Scan Range 16 Terrain Scan Density 10 Evasion (%) 55 Item Schematics ----------------- None Robot Schematics ------------------ None Fabricated ------------ Nothing Alien Tech Used ----------------- None Achievements -------------- None Challenges ------------ None Game ------ Seed ConcussiveStorageDetector Manual? 0 Play Time 00:24:36 Cumulative 144.2 hours Start 2023.10.29 @ 19:54:33 End 2023.10.29 @ 20:23:48 Sessions 1 Manual Loads 0 Difficulty Rogue Special Mode None Game No. 105 Rogue 100 Adventurer 0 Explorer 5 Win Type - Total 2 Types 2/0/0/0/0/0/0/0/0 Lore% 58 Gallery% 67 Achievement% 47 Wizard Run 0 Options --------- ASCII 0 Keyboard 0 Movement Arrows Keybinds 1 Fullscreen 1 Font 18/TerminusBold Map View 76x50 Tactical HUD 1 Map Filters NONE Filters NONE Steam 1 RUN: d6ab5299-3176-4c57-9507-566a20872fb8